[Event "Argentine Youth-Junior-ch 2025"]
[Site "Mar del Plata"]
[Date "2025.04.17"]
[Round "4.1"]
[White "Unhold, Valentin"]
[Black "Scarsi, Anna Laura"]
[Result "1/2-1/2"]
[Annotator "NA RC"]
[ECO "A13"]
[WhiteElo "2149"]
[BlackElo "2144"]
[PlyCount "129"]
[EventDate "2025.04.14"]
[EventType "swiss"]
[EventCountry "ARG"]
[SourceTitle "playchess.com"]
[Source "ChessBase"]
[SourceQuality "1"]
[TimeControl "3600+30"]

1. c4 {[%emt 0:00:03]} e6 {[%emt 0:00:04]} 2. g3 {[%emt 0:00:09]} d5 {[%emt 0:00:04]} 3. Bg2 {[%emt 0:00:07]} Nf6 {[%emt 0:00:05]} 4. Nf3 {[%emt 0:00:08]} Bd6 {[%emt 0:00:05]} 5. O-O {[%emt 0:00:59]} O-O {[%emt 0:00:08]} 6. b3 {[%emt 0:01:22]} Nc6 {[%emt 0:00:05]} 7. Bb2 {[%emt 0:01:55]} d4 {[%emt 0:01:07]} 8. Nxd4 {[%emt 0:12:07]} Nxd4 {[%emt 0:00:06]} 9. Bxd4 {[%emt 0:00:08]} Bxg3 {[%emt 0:00:22]} 10. Bb2 {[%emt 0:06:35]} Bxh2+ {[%emt 0:08:30]} 11. Kxh2 {[%emt 0:01:09]} Ng4+ {[%emt 0:00:05]} 12. Kg3 {[%emt 0:05:42]} Qg5 {[%emt 0:18:35]} 13. f4 {[%emt 0:00:19]} Qg6 {[%emt 0:00:04]} 14. Kf3 {[%emt 0:00:15]} e5 {[%emt 0:02:38]} 15. Nc3 {[%emt 0:09:25]} f5 {[%emt 0:09:44]} 16. fxe5 {[%emt 0:03:26]} f4 {[%emt 0:05:16]} 17. Qe1 {[%emt 0:15:07]} Nxe5+ {[%emt 0:01:05]} 18. Kf2 {[%emt 0:00:07]} f3 {[%emt 0:00:54]} 19. Bxf3 {[%emt 0:00:23]} Rxf3+ {[%emt 0:07:55]} 20. exf3 {[%emt 0:00:07]} Nd3+ {[%emt 0:00:07]} 21. Ke3 {[%emt 0:00:17]} Nxe1 {[%emt 0:00:47]} 22. Raxe1 {[%emt 0:00:07]} Qg5+ {[%emt 0:06:15]} 23. Ke2 {[%emt 0:02:25]} Bf5 {[%emt 0:01:40]} 24. Rg1 {[%emt 0:01:50]} Qh4 {[%emt 0:00:23]} 25. Kd1 {[%emt 0:01:01]} c6 {[%emt 0:00:38]} 26. Ne4 {[%emt 0:05:10]} Bg6 {[%emt 0:00:34]} 27. Nd6 {[%emt 0:01:06]} Qf4 {[%emt 0:00:46]} 28. Rxg6 {[%emt 0:02:20]} hxg6 {[%emt 0:00:31]} 29. Re6 {[%emt 0:00:16]} Rd8 {[%emt 0:00:42]} 30. c5 {[%emt 0:00:23]} Qxf3+ {[%emt 0:01:00]} 31. Kc2 {[%emt 0:00:43]} Qd5 {[%emt 0:02:11]} 32. Re5 {[%emt 0:00:34]} Rxd6 {[%emt 0:00:13]} 33. cxd6 {[%emt 0:00:07]} Qxd6 {[%emt 0:00:05]} 34. Re8+ {[%emt 0:00:39]} Kh7 {[%emt 0:00:30]} 35. Re3 {[%emt 0:00:49]} g5 {[%emt 0:00:34]} 36. Be5 {[%emt 0:00:32]} Qc5+ {[%emt 0:00:19]} 37. Kb2 {[%emt 0:00:09]} Kg6 {[%emt 0:00:17]} 38. Bg3 {[%emt 0:00:36]} Kh5 {[%emt 0:00:24]} 39. a3 {[%emt 0:00:19]} Kg4 {[%emt 0:00:12]} 40. Be5 {[%emt 0:00:21]} g6 {[%emt 0:02:08]} 41. b4 {[%emt 0:00:33]} Qd5 {[%emt 0:00:15]} 42. Kc2 {[%emt 0:00:15]} a5 {[%emt 0:01:24]} 43. bxa5 {[%emt 0:00:33]} Qxa5 {[%emt 0:00:27]} 44. Bb8 {[%emt 0:00:37]} Qf5+ {[%emt 0:00:30]} 45. Kc1 {[%emt 0:00:42]} Kh4 {[%emt 0:00:44]} 46. Bg3+ {[%emt 0:00:17]} Kh3 {[%emt 0:00:39]} 47. Bb8+ {[%emt 0:00:16]} Kg2 {[%emt 0:00:16]} 48. Rg3+ {[%emt 0:00:40]} Kf2 {[%emt 0:01:03]} 49. Re3 {[%emt 0:00:50]} g4 {[%emt 0:00:27]} 50. Bg3+ {[%emt 0:00:22]} Kg2 {[%emt 0:00:20]} 51. Bb8 {[%emt 0:00:12]} Qf1+ {[%emt 0:01:37]} 52. Kc2 {[%emt 0:00:17]} Qf5+ {[%emt 0:00:04]} 53. Kc1 {[%emt 0:00:07]} g5 {[%emt 0:00:29]} 54. Be5 {[%emt 0:00:32]} Qf1+ {[%emt 0:00:29]} 55. Kc2 {[%emt 0:00:08]} Qc4+ {[%emt 0:00:06]} 56. Kd1 {[%emt 0:00:56]} Kf2 {[%emt 0:01:01]} 57. Bg3+ {[%emt 0:00:14]} Kf1 {[%emt 0:00:11]} 58. Be5 {[%emt 0:00:44]} Qa4+ {[%emt 0:00:51]} 59. Kc1 {[%emt 0:00:06]} Qb5 {[%emt 0:00:12]} 60. Bb8 {[%emt 0:00:48]} Qc5+ {[%emt 0:01:34]} 61. Kd1 {[%emt 0:00:25]} Qf5 {[%emt 0:00:20]} 62. Re1+ {[%emt 0:00:22]} Kg2 {[%emt 0:00:07]} 63. Re2+ {[%emt 0:00:15]} Kf1 {[%emt 0:01:04]} 64. Re1+ {[%emt 0:00:06]} Kg2 {[%emt 0:00:05]} 65. Re2+ {[%emt 0:00:06]} 1/2-1/2

[Event "Argentine Youth-Junior-ch 2025"]
[Site "Mar del Plata"]
[Date "2025.04.17"]
[Round "4.2"]
[White "Moro Saidon, Gonzalo"]
[Black "Abramor, Franco"]
[Result "0-1"]
[Annotator "RC"]
[ECO "A11"]
[WhiteElo "2076"]
[BlackElo "2169"]
[PlyCount "96"]
[EventDate "2025.04.14"]
[EventType "swiss"]
[EventCountry "ARG"]
[SourceTitle "playchess.com"]
[Source "ChessBase"]
[SourceQuality "1"]
[TimeControl "3600+30"]

1. Nf3 {[%emt 0:00:35]} d5 {[%emt 0:00:30]} 2. g3 {[%emt 0:00:14]} Nf6 {[%emt 0:00:07]} 3. Bg2 {[%emt 0:00:06]} Bf5 {[%emt 0:00:07]} 4. O-O {[%emt 0:00:08]} h6 {[%emt 0:01:52]} 5. c4 {[%emt 0:00:52]} e6 {[%emt 0:00:19]} 6. cxd5 {[%emt 0:03:12]} exd5 {[%emt 0:00:23]} 7. d3 {[%emt 0:00:59]} c6 {[%emt 0:05:52]} 8. Nc3 {[%emt 0:01:49]} Be7 {[%emt 0:06:41]} 9. Qb3 {[%emt 0:03:49]} Nbd7 {[%emt 0:02:35]} 10. Nd4 {[%emt 0:10:30]} Nc5 {[%emt 0:00:51]} 11. Qd1 {[%emt 0:01:29]} Bh7 {[%emt 0:05:27]} 12. b4 {[%emt 0:02:29]} Ncd7 {[%emt 0:10:39]} 13. Nc2 {[%emt 0:06:32]} O-O {[%emt 0:01:23]} 14. e4 {[%emt 0:04:23]} a5 {[%emt 0:07:30]} 15. Rb1 {[%emt 0:06:11]} axb4 {[%emt 0:00:47]} 16. Nxb4 {[%emt 0:00:02]} Qa5 {[%emt 0:01:57]} 17. a3 {[%emt 0:01:20]} dxe4 {[%emt 0:01:27]} 18. dxe4 {[%emt 0:00:31]} Rad8 {[%emt 0:00:02]} 19. Qb3 {[%emt 0:02:33]} Rfe8 {[%emt 0:02:42]} 20. Bf4 {[%emt 0:00:52]} Nc5 {[%emt 0:00:45]} 21. Qc4 {[%emt 0:00:49]} Ne6 {[%emt 0:00:01]} 22. Be3 {[%emt 0:04:53]} Ng4 {[%emt 0:00:20]} 23. Nc2 {[%emt 0:00:13]} Nxe3 {[%emt 0:01:04]} 24. fxe3 {[%emt 0:01:01]} b5 {[%emt 0:01:24]} 25. Qb3 {[%emt 0:01:42]} Rd3 {[%emt 0:00:50]} 26. Nb4 {[%emt 0:01:12]} Bxb4 {[%emt 0:01:35]} 27. axb4 {[%emt 0:00:06]} Qa7 {[%emt 0:00:26]} 28. Kh1 {[%emt 0:01:17]} Qxe3 {[%emt 0:00:15]} 29. Rf3 {[%emt 0:00:19]} Qd4 {[%emt 0:01:06]} 30. Rd1 {[%emt 0:03:40]} Rxd1+ {[%emt 0:00:26]} 31. Qxd1 {[%emt 0:00:01]} Qxd1+ {[%emt 0:03:48]} 32. Nxd1 {[%emt 0:00:02]} Bxe4 {[%emt 0:00:13]} 33. Re3 {[%emt 0:00:41]} Bxg2+ {[%emt 0:00:22]} 34. Kxg2 {[%emt 0:00:02]} Rd8 {[%emt 0:00:03]} 35. Nf2 {[%emt 0:00:15]} Rd2 {[%emt 0:00:14]} 36. Rc3 {[%emt 0:00:14]} Ng5 {[%emt 0:00:49]} 37. Re3 {[%emt 0:00:11]} Kf8 {[%emt 0:02:08]} 38. h4 {[%emt 0:00:22]} Nh3 {[%emt 0:00:49]} 39. Kxh3 {[%emt 0:00:07]} Rxf2 {[%emt 0:00:01]} 40. Rc3 {[%emt 0:02:21]} Rf6 {[%emt 0:00:04]} 41. g4 {[%emt 0:01:02]} Ke7 {[%emt 0:00:28]} 42. g5 {[%emt 0:00:17]} hxg5 {[%emt 0:00:21]} 43. hxg5 {[%emt 0:00:01]} Rg6 {[%emt 0:00:02]} 44. Kg4 {[%emt 0:00:54]} f6 {[%emt 0:00:29]} 45. Kf4 {[%emt 0:00:29]} fxg5+ {[%emt 0:01:04]} 46. Kf5 {[%emt 0:00:14]} Rf6+ {[%emt 0:00:11]} 47. Kxg5 {[%emt 0:00:02]} Kd6 {[%emt 0:00:13]} 48. Rc5 {[%emt 0:00:50]} Rf1 {[%emt 0:00:24]} 0-1

[Event "Argentine Youth-Junior-ch 2025"]
[Site "Mar del Plata"]
[Date "2025.04.17"]
[Round "4.3"]
[White "Gaite, Karen Nerina"]
[Black "Rojas, Agostina"]
[Result "1-0"]
[Annotator "NA RC"]
[ECO "A36"]
[WhiteElo "2031"]
[BlackElo "1703"]
[PlyCount "51"]
[EventDate "2025.04.14"]
[EventType "swiss"]
[EventCountry "ARG"]
[SourceTitle "playchess.com"]
[Source "ChessBase"]
[SourceQuality "1"]
[TimeControl "3600+30"]

1. c4 {[%emt 0:00:06]} c5 {[%emt 0:00:09]} 2. Nc3 {[%emt 0:00:06]} g6 {[%emt 0:01:01]} 3. g3 {[%emt 0:00:16]} Bg7 {[%emt 0:00:09]} 4. Bg2 {[%emt 0:00:06]} Nf6 {[%emt 0:00:09]} 5. e3 {[%emt 0:01:09]} O-O {[%emt 0:00:29]} 6. Nge2 {[%emt 0:00:29]} Nc6 {[%emt 0:00:49]} 7. O-O {[%emt 0:00:31]} d6 {[%emt 0:00:16]} 8. b3 {[%emt 0:02:02]} Rb8 {[%emt 0:08:17]} 9. Bb2 {[%emt 0:03:10]} Ne8 {[%emt 0:11:44]} 10. d4 {[%emt 0:05:52]} Nc7 {[%emt 0:00:58]} 11. Qd2 {[%emt 0:03:35]} a6 {[%emt 0:07:56]} 12. Rfd1 {[%emt 0:02:24]} Bd7 {[%emt 0:03:28]} 13. dxc5 {[%emt 0:03:09]} dxc5 {[%emt 0:00:09]} 14. Qxd7 {[%emt 0:00:54]} Qxd7 {[%emt 0:00:24]} 15. Rxd7 {[%emt 0:00:06]} Ne6 {[%emt 0:01:17]} 16. Bxc6 {[%emt 0:01:19]} bxc6 {[%emt 0:00:02]} 17. Rad1 {[%emt 0:00:21]} a5 {[%emt 0:00:29]} 18. Na4 {[%emt 0:00:29]} Bxb2 {[%emt 0:03:23]} 19. Nxb2 {[%emt 0:00:10]} Rfe8 {[%emt 0:00:09]} 20. Nc3 {[%emt 0:00:33]} Kf8 {[%emt 0:01:43]} 21. Nba4 {[%emt 0:00:50]} Rec8 {[%emt 0:01:31]} 22. Ne4 {[%emt 0:00:30]} Ke8 {[%emt 0:00:24]} 23. Nexc5 {[%emt 0:01:50]} Nxc5 {[%emt 0:00:20]} 24. Nxc5 {[%emt 0:00:06]} a4 {[%emt 0:00:05]} 25. Nxa4 {[%emt 0:00:21]} Ra8 {[%emt 0:00:13]} 26. Nb6 {[%emt 0:43:06]} 1-0

[Event "Argentine Youth-Junior-ch 2025"]
[Site "Mar del Plata"]
[Date "2025.04.17"]
[Round "4.4"]
[White "Fuentes, Agustin"]
[Black "Deichmann, Esteban Horacio"]
[Result "1/2-1/2"]
[Annotator "NA RC"]
[ECO "D04"]
[WhiteElo "2006"]
[BlackElo "2028"]
[PlyCount "43"]
[EventDate "2025.04.14"]
[EventType "swiss"]
[EventCountry "ARG"]
[SourceTitle "playchess.com"]
[Source "ChessBase"]
[SourceQuality "1"]
[TimeControl "3600+30"]

1. Nf3 {[%emt 0:00:27]} d5 {[%emt 0:00:39]} 2. d4 {[%emt 0:00:46]} Nf6 {[%emt 0:00:49]} 3. e3 {[%emt 0:03:16]} Bf5 {[%emt 0:00:45]} 4. Bd3 {[%emt 0:05:24]} Bg6 {[%emt 0:01:51]} 5. b3 {[%emt 0:04:36]} e6 {[%emt 0:02:46]} 6. O-O {[%emt 0:01:24]} Ne4 {[%emt 0:01:00]} 7. c4 {[%emt 0:01:59]} f5 {[%emt 0:03:12]} 8. Ne5 {[%emt 0:03:55]} Bd6 {[%emt 0:00:04]} 9. f4 {[%emt 0:01:50]} Bxe5 {[%emt 0:02:55]} 10. fxe5 {[%emt 0:03:05]} Qg5 {[%emt 0:01:27]} 11. Bxe4 {[%emt 0:01:47]} fxe4 {[%emt 0:00:05]} 12. cxd5 {[%emt 0:04:58]} exd5 {[%emt 0:01:20]} 13. Nc3 {[%emt 0:00:36]} c6 {[%emt 0:00:05]} 14. Qc2 {[%emt 0:03:34]} Nd7 {[%emt 0:00:32]} 15. a4 {[%emt 0:03:39]} a5 {[%emt 0:01:36]} 16. Ne2 {[%emt 0:01:23]} Bf5 {[%emt 0:01:07]} 17. h4 {[%emt 0:04:40]} Qg6 {[%emt 0:03:36]} 18. Nf4 {[%emt 0:00:04]} Qg4 {[%emt 0:00:11]} 19. Ba3 {[%emt 0:02:31]} Rg8 {[%emt 0:04:59]} 20. Nh3 {[%emt 0:04:39]} g6 {[%emt 0:01:42]} 21. Rf4 {[%emt 0:02:25]} Qg3 {[%emt 0:00:18]} 22. Qf2 {[%emt 0:14:32]} 1/2-1/2

[Event "Argentine Youth-Junior-ch 2025"]
[Site "Mar del Plata"]
[Date "2025.04.17"]
[Round "4.5"]
[White "Herrera, Lara"]
[Black "Veliz, Daira Isis"]
[Result "0-1"]
[Annotator "NA RC"]
[ECO "C02"]
[WhiteElo "1680"]
[BlackElo "1789"]
[PlyCount "110"]
[EventDate "2025.04.14"]
[EventType "swiss"]
[EventCountry "ARG"]
[SourceTitle "playchess.com"]
[Source "ChessBase"]
[SourceQuality "1"]
[TimeControl "3600+30"]

1. e4 {[%emt 0:00:04]} e6 {[%emt 0:00:10]} 2. d4 {[%emt 0:00:06]} d5 {[%emt 0:00:06]} 3. e5 {[%emt 0:00:06]} c5 {[%emt 0:00:06]} 4. c3 {[%emt 0:00:07]} Nc6 {[%emt 0:00:10]} 5. Nf3 {[%emt 0:00:10]} Qb6 {[%emt 0:00:50]} 6. Bd3 {[%emt 0:00:13]} Bd7 {[%emt 0:01:40]} 7. O-O {[%emt 0:00:30]} cxd4 {[%emt 0:02:02]} 8. Nbd2 {[%emt 0:01:53]} dxc3 {[%emt 0:01:00]} 9. bxc3 {[%emt 0:00:11]} Nge7 {[%emt 0:03:43]} 10. Re1 {[%emt 0:01:17]} Ng6 {[%emt 0:00:22]} 11. Rb1 {[%emt 0:04:39]} Qc7 {[%emt 0:02:34]} 12. Bxg6 {[%emt 0:04:41]} hxg6 {[%emt 0:00:21]} 13. Qc2 {[%emt 0:01:33]} Rc8 {[%emt 0:03:11]} 14. a3 {[%emt 0:04:50]} Na5 {[%emt 0:09:11]} 15. Bb2 {[%emt 0:12:15]} Nc4 {[%emt 0:07:36]} 16. Nxc4 {[%emt 0:03:59]} Qxc4 {[%emt 0:00:30]} 17. Qd2 {[%emt 0:03:56]} f6 {[%emt 0:08:09]} 18. Qe3 {[%emt 0:11:07]} Bc5 {[%emt 0:02:24]} 19. Nd4 {[%emt 0:00:44]} Kf7 {[%emt 0:07:54]} 20. Qf4 {[%emt 0:05:49]} Bxd4 {[%emt 0:05:23]} 21. cxd4 {[%emt 0:00:45]} Qd3 {[%emt 0:00:41]} 22. exf6 {[%emt 0:04:09]} gxf6 {[%emt 0:00:11]} 23. Rbc1 {[%emt 0:02:51]} Rc4 {[%emt 0:03:52]} 24. Qd6 {[%emt 0:02:12]} Rd8 {[%emt 0:00:28]} 25. h3 {[%emt 0:00:23]} Rxc1 {[%emt 0:02:37]} 26. Rxc1 {[%emt 0:01:48]} Qb5 {[%emt 0:01:37]} 27. Bc3 {[%emt 0:01:22]} Rc8 {[%emt 0:01:37]} 28. Qf4 {[%emt 0:01:05]} g5 {[%emt 0:02:14]} 29. Qf3 {[%emt 0:00:59]} Qb3 {[%emt 0:00:57]} 30. Qd3 {[%emt 0:00:42]} f5 {[%emt 0:01:12]} 31. Qg3 {[%emt 0:00:39]} Qxa3 {[%emt 0:01:44]} 32. Qe3 {[%emt 0:00:48]} b5 {[%emt 0:00:30]} 33. Qd2 {[%emt 0:00:30]} a5 {[%emt 0:01:14]} 34. Bb2 {[%emt 0:00:30]} Rxc1+ {[%emt 0:00:06]} 35. Bxc1 {[%emt 0:00:06]} Qa4 {[%emt 0:00:29]} 36. Kh2 {[%emt 0:00:55]} Qc4 {[%emt 0:00:32]} 37. g3 {[%emt 0:00:23]} a4 {[%emt 0:00:17]} 38. Qxg5 {[%emt 0:00:33]} Qxd4 {[%emt 0:00:24]} 39. Qh5+ {[%emt 0:00:16]} Ke7 {[%emt 0:00:20]} 40. Be3 {[%emt 0:00:35]} Qc3 {[%emt 0:01:20]} 41. Qg5+ {[%emt 0:00:41]} Kd6 {[%emt 0:00:14]} 42. Bf4+ {[%emt 0:00:14]} e5 {[%emt 0:00:48]} 43. Qf6+ {[%emt 0:00:16]} Be6 {[%emt 0:00:11]} 44. Qd8+ {[%emt 0:00:41]} Kc6 {[%emt 0:00:50]} 45. Qf6 {[%emt 0:00:53]} Kb7 {[%emt 0:00:34]} 46. Bxe5 {[%emt 0:00:15]} Qc6 {[%emt 0:00:09]} 47. h4 {[%emt 0:00:31]} Qd7 {[%emt 0:00:32]} 48. h5 {[%emt 0:00:36]} a3 {[%emt 0:00:21]} 49. h6 {[%emt 0:00:34]} b4 {[%emt 0:00:23]} 50. Qg7 {[%emt 0:00:21]} Qxg7 {[%emt 0:00:21]} 51. Bxg7 {[%emt 0:00:37]} Bg8 {[%emt 0:00:44]} 52. Bf8 {[%emt 0:00:39]} a2 {[%emt 0:00:00]} 53. Bg7 {[%emt 0:00:07]} Kc6 {[%emt 0:00:00]} 54. Kg1 {[%emt 0:00:19]} Kc5 {[%emt 0:00:01]} 55. Kf1 {[%emt 0:00:05]} d4 {[%emt 0:00:06]} 0-1

[Event "Argentine Youth-Junior-ch 2025"]
[Site "Mar del Plata"]
[Date "2025.04.17"]
[Round "4.6"]
[White "Anigstein, Eugenio"]
[Black "Bazan Romero, Octavio Aaron"]
[Result "1/2-1/2"]
[Annotator "RC"]
[ECO "B90"]
[WhiteElo "1988"]
[BlackElo "2292"]
[PlyCount "88"]
[EventDate "2025.04.14"]
[EventType "swiss"]
[EventCountry "ARG"]
[SourceTitle "playchess.com"]
[Source "ChessBase"]
[SourceQuality "1"]
[TimeControl "3600+30"]

1. e4 {[%emt 0:00:21]} c5 {[%emt 0:00:50]} 2. Nf3 {[%emt 1:01:09]} d6 {[%emt 0:00:07]} 3. d4 {[%emt 0:00:00]} cxd4 {[%emt 0:00:02]} 4. Nxd4 {[%emt 0:00:00]} Nf6 {[%emt 0:00:06]} 5. Nc3 {[%emt 0:00:00]} a6 {[%emt 0:00:06]} 6. Be3 {[%emt 0:00:00]} e5 {[%emt 0:00:43]} 7. Nb3 {[%emt 0:00:00]} Be6 {[%emt 0:00:12]} 8. f3 {[%emt 0:00:00]} h5 {[%emt 0:00:19]} 9. Qd2 {[%emt 0:00:00]} Nbd7 {[%emt 0:00:35]} 10. Nd5 {[%emt 0:00:00]} Bxd5 {[%emt 0:00:18]} 11. exd5 {[%emt 0:00:00]} g6 {[%emt 0:00:10]} 12. a4 {[%emt 0:00:00]} Bg7 {[%emt 0:14:30]} 13. Be2 {[%emt 0:00:00]} O-O {[%emt 0:02:09]} 14. O-O {[%emt 0:00:00]} Re8 {[%emt 0:07:02]} 15. c4 {[%emt 0:00:00]} a5 {[%emt 0:10:00]} 16. Rac1 {[%emt 0:00:00]} b6 {[%emt 0:02:45]} 17. Bd3 {[%emt 0:00:00]} Nc5 {[%emt 0:03:50]} 18. Nxc5 {[%emt 0:00:00]} bxc5 {[%emt 0:00:14]} 19. b3 {[%emt 0:00:00]} Rb8 {[%emt 0:00:50]} 20. Bc2 {[%emt 0:00:00]} Qc7 {[%emt 0:01:54]} 21. Bg5 {[%emt 0:00:00]} Nh7 {[%emt 0:01:21]} 22. Rce1 {[%emt 0:00:00]} Nxg5 {[%emt 0:04:10]} 23. Qxg5 {[%emt 0:00:00]} Qe7 {[%emt 0:00:22]} 24. Qd2 {[%emt 0:00:00]} Rb4 {[%emt 0:00:34]} 25. Kh1 {[%emt 0:00:00]} Rf8 {[%emt 0:01:59]} 26. g4 {[%emt 0:00:00]} hxg4 {[%emt 0:02:13]} 27. fxg4 {[%emt 0:00:00]} Bf6 {[%emt 0:01:59]} 28. Rf3 {[%emt 0:00:00]} Bg5 {[%emt 0:00:15]} 29. Qe2 {[%emt 0:00:00]} Kg7 {[%emt 0:00:59]} 30. Ref1 {[%emt 0:00:00]} Rb7 {[%emt 0:00:59]} 31. Qe1 {[%emt 0:00:00]} Qd8 {[%emt 0:02:57]} 32. Rh3 {[%emt 0:03:34]} Rh8 {[%emt 0:00:58]} 33. Rff3 {[%emt 0:01:18]} Rxh3 {[%emt 0:02:18]} 34. Rxh3 {[%emt 0:00:09]} Bf4 {[%emt 0:00:09]} 35. Kg2 {[%emt 0:04:51]} Qg5 {[%emt 0:01:47]} 36. Qh4 {[%emt 0:00:02]} Qxh4 {[%emt 0:02:50]} 37. Rxh4 {[%emt 0:00:02]} f5 {[%emt 0:01:15]} 38. gxf5 {[%emt 0:00:47]} gxf5 {[%emt 0:00:08]} 39. Rh5 {[%emt 0:00:10]} Rb8 {[%emt 0:02:09]} 40. h3 {[%emt 0:01:45]} Kf6 {[%emt 0:03:05]} 41. Rxf5+ {[%emt 0:01:17]} Ke7 {[%emt 0:00:05]} 42. Bd1 {[%emt 0:00:48]} Rg8+ {[%emt 0:00:19]} 43. Bg4 {[%emt 0:00:06]} Rb8 {[%emt 0:00:12]} 44. Bd1 {[%emt 0:00:21]} Rg8+ {[%emt 0:00:23]} 1/2-1/2

[Event "Argentine Youth-Junior-ch 2025"]
[Site "Mar del Plata"]
[Date "2025.04.17"]
[Round "4.7"]
[White "Duarte Fernandez, Agustin"]
[Black "Simbler, Facundo"]
[Result "1/2-1/2"]
[Annotator "NA RC"]
[ECO "B14"]
[WhiteElo "2001"]
[BlackElo "1928"]
[PlyCount "141"]
[EventDate "2025.04.14"]
[EventType "swiss"]
[EventCountry "ARG"]
[SourceTitle "playchess.com"]
[Source "ChessBase"]
[SourceQuality "1"]
[TimeControl "3600+30"]

1. c4 {[%emt 0:00:03]} Nf6 {[%emt 0:00:11]} 2. d4 {[%emt 0:00:09]} c5 {[%emt 0:00:07]} 3. e3 {[%emt 0:00:06]} g6 {[%emt 0:00:35]} 4. Nf3 {[%emt 0:00:08]} Bg7 {[%emt 0:00:30]} 5. Nc3 {[%emt 0:00:09]} cxd4 {[%emt 0:00:42]} 6. exd4 {[%emt 0:00:07]} d5 {[%emt 0:00:11]} 7. Be3 {[%emt 0:03:30]} O-O {[%emt 0:04:05]} 8. h3 {[%emt 0:00:25]} dxc4 {[%emt 0:02:00]} 9. Bxc4 {[%emt 0:00:16]} Nc6 {[%emt 0:00:08]} 10. a3 {[%emt 0:03:38]} b6 {[%emt 0:08:37]} 11. Ne5 {[%emt 0:00:29]} Bb7 {[%emt 0:01:51]} 12. O-O {[%emt 0:00:19]} Rc8 {[%emt 0:01:52]} 13. Ba2 {[%emt 0:00:23]} Nxe5 {[%emt 0:02:45]} 14. dxe5 {[%emt 0:00:11]} Ne4 {[%emt 0:00:07]} 15. Nxe4 {[%emt 0:04:28]} Bxe4 {[%emt 0:00:10]} 16. e6 {[%emt 0:00:50]} f5 {[%emt 0:06:43]} 17. Qa4 {[%emt 0:04:48]} Bxb2 {[%emt 0:06:55]} 18. Rad1 {[%emt 0:00:17]} Bc2 {[%emt 0:00:38]} 19. Bb3 {[%emt 0:13:29]} Bxd1 {[%emt 0:02:58]} 20. Rxd1 {[%emt 0:00:08]} Qc7 {[%emt 0:02:03]} 21. g3 {[%emt 0:00:14]} Bf6 {[%emt 0:02:14]} 22. h4 {[%emt 0:00:40]} Qc6 {[%emt 0:01:27]} 23. Qxa7 {[%emt 0:07:20]} Rc7 {[%emt 0:00:40]} 24. Qa6 {[%emt 0:00:35]} b5 {[%emt 0:00:13]} 25. Qxc6 {[%emt 0:05:50]} Rxc6 {[%emt 0:00:06]} 26. Rd5 {[%emt 0:00:09]} Ra6 {[%emt 0:03:38]} 27. Rxb5 {[%emt 0:00:12]} Rxa3 {[%emt 0:00:07]} 28. Kg2 {[%emt 0:00:48]} Ra1 {[%emt 0:02:20]} 29. Bd5 {[%emt 0:00:27]} Rd8 {[%emt 0:01:06]} 30. Bc6 {[%emt 0:00:53]} Bd4 {[%emt 0:12:31]} 31. Bg5 {[%emt 0:16:28]} Rc8 {[%emt 0:00:20]} 32. Rd5 {[%emt 0:02:10]} Rxc6 {[%emt 0:00:54]} 33. Rxd4 {[%emt 0:00:12]} Rxe6 {[%emt 0:00:17]} 34. Rd8+ {[%emt 0:00:11]} Kg7 {[%emt 0:00:21]} 35. Bd2 {[%emt 0:00:38]} Ra2 {[%emt 0:01:45]} 36. Bc3+ {[%emt 0:00:17]} Kf7 {[%emt 0:00:28]} 37. Rh8 {[%emt 0:02:00]} Ree2 {[%emt 0:00:17]} 38. Rxh7+ {[%emt 0:00:25]} Kg8 {[%emt 0:00:23]} 39. Rh8+ {[%emt 0:00:16]} Kf7 {[%emt 0:00:09]} 40. Rh7+ {[%emt 0:00:13]} Ke6 {[%emt 0:01:12]} 41. Bd4 {[%emt 0:00:30]} Kd5 {[%emt 0:00:36]} 42. Bb6 {[%emt 0:00:19]} e5 {[%emt 0:00:19]} 43. Re7 {[%emt 0:01:43]} Ke4 {[%emt 0:00:20]} 44. Rc7 {[%emt 0:00:31]} Reb2 {[%emt 0:01:27]} 45. Ba7 {[%emt 0:00:23]} Rc2 {[%emt 0:01:50]} 46. Re7 {[%emt 0:00:14]} Rcb2 {[%emt 0:03:07]} 47. Bc5 {[%emt 0:01:47]} Rb5 {[%emt 0:01:16]} 48. Be3 {[%emt 0:00:28]} Ra1 {[%emt 0:00:25]} 49. Bf4 {[%emt 0:00:31]} Re1 {[%emt 0:00:45]} 50. Re8 {[%emt 0:00:38]} Rd5 {[%emt 0:00:46]} 51. Re7 {[%emt 0:00:31]} Kd3 {[%emt 0:00:14]} 52. Bg5 {[%emt 0:00:19]} Ke2 {[%emt 0:00:28]} 53. Ra7 {[%emt 0:02:40]} Rdd1 {[%emt 0:00:41]} 54. Ra2+ {[%emt 0:00:14]} Kd3 {[%emt 0:00:04]} 55. Kf3 {[%emt 0:00:11]} Rf1 {[%emt 0:00:43]} 56. Ra3+ {[%emt 0:00:12]} Kc4 {[%emt 0:00:40]} 57. Be3 {[%emt 0:00:07]} Ra1 {[%emt 0:00:21]} 58. Rxa1 {[%emt 0:00:38]} Rxa1 {[%emt 0:00:04]} 59. g4 {[%emt 0:00:14]} f4 {[%emt 0:00:28]} 60. Bb6 {[%emt 0:00:10]} Rh1 {[%emt 0:00:56]} 61. Bd8 {[%emt 0:00:23]} Kd5 {[%emt 0:00:27]} 62. Kg2 {[%emt 0:00:15]} Rb1 {[%emt 0:00:10]} 63. h5 {[%emt 0:00:42]} gxh5 {[%emt 0:00:18]} 64. gxh5 {[%emt 0:00:08]} Rb8 {[%emt 0:00:09]} 65. Bf6 {[%emt 0:00:50]} Ke6 {[%emt 0:02:04]} 66. Bg7 {[%emt 0:00:14]} Kf7 {[%emt 0:00:42]} 67. Bxe5 {[%emt 0:00:08]} Rb5 {[%emt 0:00:04]} 68. Bxf4 {[%emt 0:00:08]} Rxh5 {[%emt 0:00:05]} 69. Be3 {[%emt 0:00:08]} Rf5 {[%emt 0:00:05]} 70. Kg3 {[%emt 0:00:12]} Rxf2 {[%emt 0:00:06]} 71. Bxf2 {[%emt 0:00:09]} 1/2-1/2

[Event "Argentine Youth-Junior-ch 2025"]
[Site "Mar del Plata"]
[Date "2025.04.17"]
[Round "4.8"]
[White "Donda, Jazmin"]
[Black "Gimenez, Martina"]
[Result "1-0"]
[Annotator "NA RC"]
[ECO "D06"]
[WhiteElo "1919"]
[BlackElo "1540"]
[PlyCount "55"]
[EventDate "2025.04.14"]
[EventType "swiss"]
[EventCountry "ARG"]
[SourceTitle "playchess.com"]
[Source "ChessBase"]
[SourceQuality "1"]
[TimeControl "3600+30"]

1. d4 {[%emt 0:00:11]} Nf6 {[%emt 0:00:08]} 2. c4 {[%emt 0:00:30]} d5 {[%emt 0:00:30]} 3. cxd5 {[%emt 0:00:30]} Nxd5 {[%emt 0:00:30]} 4. e4 {[%emt 0:00:30]} Nf6 {[%emt 0:00:30]} 5. Nc3 {[%emt 0:00:30]} e6 {[%emt 0:00:30]} 6. Nf3 {[%emt 0:00:30]} Bb4 {[%emt 0:00:30]} 7. Bg5 {[%emt 0:00:30]} h6 {[%emt 0:00:30]} 8. Bxf6 {[%emt 0:00:30]} Qxf6 {[%emt 0:00:30]} 9. Qa4+ {[%emt 0:00:30]} Nc6 {[%emt 0:00:30]} 10. Ne5 {[%emt 0:00:30]} Bd7 {[%emt 0:00:30]} 11. Nxc6 {[%emt 0:00:30]} Bxc3+ {[%emt 0:00:30]} 12. bxc3 {[%emt 0:00:30]} Bxc6 {[%emt 0:00:30]} 13. Bb5 {[%emt 0:00:30]} O-O {[%emt 0:00:30]} 14. Bxc6 {[%emt 0:00:30]} bxc6 {[%emt 0:00:30]} 15. Qxc6 {[%emt 0:00:30]} Qf4 {[%emt 0:00:30]} 16. O-O {[%emt 0:00:30]} Qd6 {[%emt 0:00:30]} 17. Qc4 {[%emt 0:00:30]} Rfc8 {[%emt 0:00:30]} 18. Rfd1 {[%emt 0:00:30]} c5 {[%emt 0:00:30]} 19. d5 {[%emt 0:00:30]} exd5 {[%emt 0:00:30]} 20. Rxd5 {[%emt 0:00:30]} Qe6 {[%emt 0:00:30]} 21. Rad1 {[%emt 0:00:30]} Re8 {[%emt 0:00:30]} 22. e5 {[%emt 0:00:30]} Rac8 {[%emt 0:00:30]} 23. Qa4 {[%emt 0:00:30]} Qb6 {[%emt 0:00:30]} 24. c4 {[%emt 0:00:30]} Qc7 {[%emt 0:00:30]} 25. f4 {[%emt 0:00:30]} Red8 {[%emt 0:00:30]} 26. Rd7 {[%emt 0:00:30]} Qb8 {[%emt 0:00:30]} 27. Qb3 {[%emt 0:00:30]} Qxb3 {[%emt 0:00:30]} 28. Rxd8+ {[%emt 0:00:30]} 1-0